[Event "Early-Titled-Tuesday-Blitz-March-12-2024"]
[Site "Chess.com"]
[Date "2024.03.12"]
[Round "7"]
[White "geminithegreat"]
[Black "Kotofeyca"]
[Result "0-1"]
[WhiteElo "2220"]
[BlackElo "2435"]
[TimeControl "180+1"]
[EndTime "9:18:19 PDT"]
[Termination "Kotofeyca won on time"]

1. d4 {[%clk 0:03:00.6]} 1... d5 {[%clk 0:02:59.5]} 2. c4 {[%clk 0:03:00.5]}
2... c6 {[%clk 0:03:00]} 3. Nf3 {[%clk 0:03:00.7]} 3... Nf6 {[%clk 0:03:00.5]}
4. g3 {[%clk 0:02:59.1]} 4... Bf5 {[%clk 0:03:00]} 5. Nc3 {[%clk 0:02:58.7]}
5... e6 {[%clk 0:03:00.5]} 6. Qb3 {[%clk 0:02:58.9]} 6... Qb6 {[%clk 0:02:54.3]}
7. c5 {[%clk 0:02:59.2]} 7... Qxb3 {[%clk 0:02:54.3]} 8. axb3 {[%clk 0:03:00.1]}
8... a6 {[%clk 0:02:43.5]} 9. b4 {[%clk 0:02:59.9]} 9... Ne4 {[%clk 0:02:43.6]}
10. Bg2 {[%clk 0:02:58.2]} 10... Nd7 {[%clk 0:02:42.6]} 11. O-O {[%clk
0:02:54.1]} 11... Rc8 {[%clk 0:02:40.9]} 12. Nh4 {[%clk 0:02:54]} 12... Nxc3
{[%clk 0:02:33.9]} 13. bxc3 {[%clk 0:02:54.9]} 13... Bc2 {[%clk 0:02:24.5]} 14.
Ra2 {[%clk 0:02:50.9]} 14... Bb3 {[%clk 0:02:24.7]} 15. Rb2 {[%clk 0:02:49]}
15... Bc4 {[%clk 0:02:24.9]} 16. Re1 {[%clk 0:02:47.5]} 16... Be7 {[%clk
0:02:24.7]} 17. Nf3 {[%clk 0:02:44.5]} 17... f5 {[%clk 0:01:57.4]} 18. Ng5
{[%clk 0:02:39.1]} 18... Bxg5 {[%clk 0:01:53.5]} 19. Bxg5 {[%clk 0:02:39.5]}
19... Kf7 {[%clk 0:01:50.8]} 20. f3 {[%clk 0:02:39]} 20... h6 {[%clk 0:01:49.2]}
21. Bc1 {[%clk 0:02:35.5]} 21... Nf6 {[%clk 0:01:47.8]} 22. Bf4 {[%clk
0:02:27.3]} 22... Rce8 {[%clk 0:01:45.1]} 23. Be5 {[%clk 0:02:27]} 23... Nd7
{[%clk 0:01:44.8]} 24. Bd6 {[%clk 0:02:26.2]} 24... e5 {[%clk 0:01:42.9]} 25. e4
{[%clk 0:02:21.8]} 25... exd4 {[%clk 0:01:42.5]} 26. cxd4 {[%clk 0:02:19.7]}
26... dxe4 {[%clk 0:01:36.2]} 27. fxe4 {[%clk 0:02:20.6]} 27... fxe4 {[%clk
0:01:36.2]} 28. Bxe4 {[%clk 0:02:13.3]} 28... Nf6 {[%clk 0:01:35]} 29. Be5
{[%clk 0:01:57]} 29... Nxe4 {[%clk 0:01:13.2]} 30. Rxe4 {[%clk 0:01:57.9]} 30...
Rhf8 {[%clk 0:01:13.4]} 31. Rb1 {[%clk 0:01:20.3]} 31... g5 {[%clk 0:01:03.2]}
32. Rbe1 {[%clk 0:01:15]} 32... Kg6 {[%clk 0:00:57]} 33. Bd6 {[%clk 0:01:08.3]}
33... Rxe4 {[%clk 0:00:50.6]} 34. Rxe4 {[%clk 0:01:09.2]} 34... Rf1+ {[%clk
0:00:50.4]} 35. Kg2 {[%clk 0:01:08.5]} 35... Rb1 {[%clk 0:00:49.5]} 36. Re7
{[%clk 0:00:55.7]} 36... Rb2+ {[%clk 0:00:39.2]} 37. Kg1 {[%clk 0:00:49.1]}
37... Rxb4 {[%clk 0:00:38.5]} 38. Be5 {[%clk 0:00:47.3]} 38... Kf5 {[%clk
0:00:32]} 39. h3 {[%clk 0:00:27.3]} 39... Ke4 {[%clk 0:00:18.9]} 40. Re8 {[%clk
0:00:13.8]} 40... Kf3 {[%clk 0:00:17.7]} 41. Rf8+ {[%clk 0:00:13.1]} 41... Ke4
{[%clk 0:00:17.6]} 42. Re8 {[%clk 0:00:12.8]} 42... Rb1+ {[%clk 0:00:17.5]} 43.
Kf2 {[%clk 0:00:12.3]} 43... Rb2+ {[%clk 0:00:18.4]} 44. Kg1 {[%clk 0:00:12]}
44... Kd3 {[%clk 0:00:17.8]} 45. Bg7 {[%clk 0:00:10.5]} 45... Rb1+ {[%clk
0:00:16.8]} 46. Kf2 {[%clk 0:00:10.2]} 46... Rb2+ {[%clk 0:00:17.7]} 47. Kg1
{[%clk 0:00:10.2]} 47... Bd5 {[%clk 0:00:17.4]} 48. Bxh6 {[%clk 0:00:06.9]}
48... Rg2+ {[%clk 0:00:17.2]} 49. Kf1 {[%clk 0:00:07]} 49... Rxg3 {[%clk
0:00:17.9]} 50. Re5 {[%clk 0:00:02.8]} 50... Kxd4 {[%clk 0:00:17.1]} 51. Rxg5
{[%clk 0:00:02.7]} 51... Rxh3 {[%clk 0:00:17.2]} 52. Bg7+ {[%clk 0:00:03.2]}
52... Kxc5 {[%clk 0:00:16.8]} 53. Bf8+ {[%clk 0:00:03.7]} 53... Kc4 {[%clk
0:00:16.2]} 54. Rg7 {[%clk 0:00:04.3]} 54... b5 {[%clk 0:00:16]} 55. Ke2 {[%clk
0:00:04.9]} 55... a5 {[%clk 0:00:15.8]} 56. Ra7 {[%clk 0:00:05.1]} 56... a4
{[%clk 0:00:15.5]} 57. Rg7 {[%clk 0:00:05.5]} 57... a3 {[%clk 0:00:15.1]} 58.
Kd1 {[%clk 0:00:06]} 58... a2 {[%clk 0:00:14.7]} 59. Ra7 {[%clk 0:00:05.5]}
59... Kb3 {[%clk 0:00:14.8]} 60. Bg7 {[%clk 0:00:04.5]} 60... Rh1+ {[%clk
0:00:15.1]} 61. Kd2 {[%clk 0:00:04]} 61... c5 {[%clk 0:00:15]} 62. Ra5 {[%clk
0:00:02.6]} 62... Bc4 {[%clk 0:00:14.4]} 63. Bf6 {[%clk 0:00:01.4]} 63... Rh2+
{[%clk 0:00:14]} 64. Ke3 {[%clk 0:00:02.1]} 64... Rh3+ {[%clk 0:00:13.9]} 65.
Kf4 {[%clk 0:00:02.6]} 65... Rh1 {[%clk 0:00:13.5]} 66. Ke3 {[%clk 0:00:03.1]}
66... Re1+ {[%clk 0:00:13.1]} 67. Kd2 {[%clk 0:00:03.7]} 67... Re2+ {[%clk
0:00:13.3]} 68. Kd1 {[%clk 0:00:04.4]} 68... Kb4 {[%clk 0:00:12]} 69. Ra7 {[%clk
0:00:03]} 69... Rf2 {[%clk 0:00:12.2]} 70. Bg7 {[%clk 0:00:02.9]} 70... Rg2
{[%clk 0:00:10.9]} 71. Bh8 {[%clk 0:00:02.7]} 71... Bd5 {[%clk 0:00:10.8]} 72.
Ra6 {[%clk 0:00:01.3]} 72... c4 {[%clk 0:00:10.8]} 0-1

[Event "Early-Titled-Tuesday-Blitz-March-12-2024"]
[Site "Chess.com"]
[Date "2024.03.12"]
[Round "7"]
[White "Nitzan_Steinberg"]
[Black "PepeCuenca"]
[Result "0-1"]
[WhiteElo "2891"]
[BlackElo "2714"]
[TimeControl "180+1"]
[EndTime "9:19:16 PDT"]
[Termination "PepeCuenca won by resignation"]

1. e4 {[%clk 0:02:38.9]} 1... c5 {[%clk 0:03:00.1]} 2. Nf3 {[%clk 0:02:37.9]}
2... Nc6 {[%clk 0:03:00.7]} 3. Bb5 {[%clk 0:02:38]} 3... e5 {[%clk 0:02:59.8]}
4. O-O {[%clk 0:02:36.1]} 4... Bd6 {[%clk 0:02:59.8]} 5. d4 {[%clk 0:02:36.6]}
5... Nxd4 {[%clk 0:02:54.7]} 6. Bc4 {[%clk 0:02:27.1]} 6... h6 {[%clk
0:02:51.4]} 7. Nxd4 {[%clk 0:02:15.9]} 7... cxd4 {[%clk 0:02:51.6]} 8. c3 {[%clk
0:02:16.5]} 8... Bc5 {[%clk 0:02:49]} 9. b4 {[%clk 0:02:11.8]} 9... Bb6 {[%clk
0:02:49]} 10. a4 {[%clk 0:02:12.3]} 10... d5 {[%clk 0:02:38.3]} 11. exd5 {[%clk
0:02:00.4]} 11... Nf6 {[%clk 0:02:24.3]} 12. a5 {[%clk 0:02:00.5]} 12... Bc7
{[%clk 0:02:23.3]} 13. cxd4 {[%clk 0:02:01]} 13... O-O {[%clk 0:02:19.5]} 14. h3
{[%clk 0:01:53.5]} 14... Qd6 {[%clk 0:01:47.5]} 15. Re1 {[%clk 0:01:36.9]} 15...
e4 {[%clk 0:01:31.4]} 16. g3 {[%clk 0:01:37.2]} 16... Bxh3 {[%clk 0:01:28.7]}
17. Qb3 {[%clk 0:01:20.4]} 17... Qd7 {[%clk 0:01:13.5]} 18. Nd2 {[%clk
0:01:14.7]} 18... Rfe8 {[%clk 0:01:04]} 19. Nf1 {[%clk 0:01:05.6]} 19... Rad8
{[%clk 0:00:52.5]} 20. Ne3 {[%clk 0:01:00.4]} 20... h5 {[%clk 0:00:51.9]} 21.
Qa4 {[%clk 0:00:55.5]} 21... Qc8 {[%clk 0:00:16.4]} 22. a6 {[%clk 0:00:55.1]}
22... b6 {[%clk 0:00:14]} 23. Qc6 {[%clk 0:00:51.9]} 23... h4 {[%clk 0:00:10.7]}
24. Qb7 {[%clk 0:00:36.8]} 24... hxg3 {[%clk 0:00:09.1]} 25. fxg3 {[%clk
0:00:29.3]} 25... Bxg3 {[%clk 0:00:09.1]} 26. Bd2 {[%clk 0:00:29.7]} 26... Bxe1
{[%clk 0:00:08.5]} 27. Rxe1 {[%clk 0:00:30.6]} 27... Ng4 {[%clk 0:00:07.1]} 28.
Bb5 {[%clk 0:00:24.1]} 28... Nxe3 {[%clk 0:00:05.6]} 29. Qxc8 {[%clk 0:00:24.7]}
29... Rxc8 {[%clk 0:00:04.6]} 30. Rxe3 {[%clk 0:00:15.7]} 30... Bf5 {[%clk
0:00:04.7]} 31. Bxe8 {[%clk 0:00:15.9]} 31... Rxe8 {[%clk 0:00:05.2]} 32. Rc3
{[%clk 0:00:15.4]} 32... Bd7 {[%clk 0:00:02.6]} 33. Rc7 {[%clk 0:00:14.7]} 33...
Bb5 {[%clk 0:00:03.1]} 34. Rxa7 {[%clk 0:00:14.7]} 34... e3 {[%clk 0:00:03.7]}
35. Be1 {[%clk 0:00:13.2]} 35... Rc8 {[%clk 0:00:04.2]} 36. Kg2 {[%clk
0:00:10.2]} 36... Rc1 {[%clk 0:00:03.8]} 37. Ra8+ {[%clk 0:00:09.6]} 37... Kh7
{[%clk 0:00:03.8]} 38. a7 {[%clk 0:00:09.7]} 38... Ra1 {[%clk 0:00:04]} 39. Kf3
{[%clk 0:00:07.2]} 39... Bc4 {[%clk 0:00:03.7]} 40. Kxe3 {[%clk 0:00:03.6]}
40... Bxd5 {[%clk 0:00:03.4]} 41. Rd8 {[%clk 0:00:03.2]} 41... Bh1 {[%clk
0:00:03.7]} 42. Bc3 {[%clk 0:00:02.8]} 42... Rxa7 {[%clk 0:00:03.3]} 43. d5
{[%clk 0:00:03.1]} 43... Rc7 {[%clk 0:00:02.8]} 44. Be5 {[%clk 0:00:03.4]} 44...
Rc4 {[%clk 0:00:02.4]} 45. d6 {[%clk 0:00:03.7]} 45... Bc6 {[%clk 0:00:02.4]}
46. Kd3 {[%clk 0:00:03.7]} 46... Rxb4 {[%clk 0:00:02.5]} 47. d7 {[%clk
0:00:03.5]} 47... Bxd7 {[%clk 0:00:02.6]} 48. Rxd7 {[%clk 0:00:03.9]} 48... Kg6
{[%clk 0:00:03.1]} 49. Bd4 {[%clk 0:00:04.1]} 49... f6 {[%clk 0:00:03]} 50. Ke4
{[%clk 0:00:04.1]} 50... b5 {[%clk 0:00:03]} 51. Rb7 {[%clk 0:00:04.3]} 51...
Rb1 {[%clk 0:00:03]} 52. Kd3 {[%clk 0:00:04.3]} 52... b4 {[%clk 0:00:03.2]} 53.
Kc2 {[%clk 0:00:04.4]} 53... Rf1 {[%clk 0:00:03.1]} 54. Rxb4 {[%clk 0:00:04.4]}
54... Rf4 {[%clk 0:00:03.4]} 55. Kd3 {[%clk 0:00:04.9]} 55... Rg4 {[%clk
0:00:03.7]} 56. Rb8 {[%clk 0:00:04.1]} 56... Rg3+ {[%clk 0:00:04.1]} 57. Ke4
{[%clk 0:00:04.2]} 57... Rg4+ {[%clk 0:00:05]} 58. Kd3 {[%clk 0:00:04.4]} 58...
Rg3+ {[%clk 0:00:05.6]} 59. Be3 {[%clk 0:00:05.1]} 59... Rg4 {[%clk 0:00:05.8]}
60. Ke2 {[%clk 0:00:05.3]} 60... Ra4 {[%clk 0:00:05.6]} 61. Kf3 {[%clk
0:00:05.8]} 61... Kf5 {[%clk 0:00:05.4]} 62. Rb5+ {[%clk 0:00:06.2]} 62... Kg6
{[%clk 0:00:05.4]} 63. Bf4 {[%clk 0:00:05.8]} 63... Rc4 {[%clk 0:00:05.2]} 64.
Rb7 {[%clk 0:00:03.7]} 64... Rd4 {[%clk 0:00:04.8]} 65. Be3 {[%clk 0:00:03.1]}
65... Rc4 {[%clk 0:00:04.7]} 66. Ke2 {[%clk 0:00:03.2]} 66... Re4 {[%clk
0:00:03.2]} 67. Kd3 {[%clk 0:00:03.6]} 67... Ra4 {[%clk 0:00:03.9]} 68. Bc5
{[%clk 0:00:04.1]} 68... Ra8 {[%clk 0:00:03.3]} 69. Ke4 {[%clk 0:00:04]} 69...
Re8+ {[%clk 0:00:03.2]} 70. Kd5 {[%clk 0:00:03]} 70... Rd8+ {[%clk 0:00:03.4]}
71. Ke6 {[%clk 0:00:03.1]} 71... Re8+ {[%clk 0:00:02.9]} 72. Be7 {[%clk
0:00:03.4]} 72... Rc8 {[%clk 0:00:02.8]} 73. Rb6 {[%clk 0:00:02.5]} 73... Ra8
{[%clk 0:00:02.7]} 74. Rb1 {[%clk 0:00:02.5]} 74... Ra6+ {[%clk 0:00:02.6]} 75.
Bd6 {[%clk 0:00:03.2]} 75... Ra5 {[%clk 0:00:02]} 76. Rg1+ {[%clk 0:00:03.8]}
76... Rg5 {[%clk 0:00:02.6]} 77. Rf1 {[%clk 0:00:04]} 77... Rg2 {[%clk 0:00:03]}
78. Bf4 {[%clk 0:00:04.3]} 78... Re2+ {[%clk 0:00:03.3]} 79. Kd5 {[%clk
0:00:04.9]} 79... Kf7 {[%clk 0:00:03.3]} 80. Kd4 {[%clk 0:00:03.8]} 80... Re7
{[%clk 0:00:03.1]} 81. Be3 {[%clk 0:00:04]} 81... Rd7+ {[%clk 0:00:03.5]} 82.
Ke4 {[%clk 0:00:04.1]} 82... Re7+ {[%clk 0:00:04.2]} 83. Kf3 {[%clk 0:00:04.8]}
83... g5 {[%clk 0:00:03.9]} 84. Ke2 {[%clk 0:00:03.6]} 84... Kg6 {[%clk
0:00:04.3]} 85. Kd3 {[%clk 0:00:03.7]} 85... f5 {[%clk 0:00:04.3]} 86. Rg1
{[%clk 0:00:03.1]} 86... g4 {[%clk 0:00:04.9]} 87. Bf4 {[%clk 0:00:01.9]} 87...
Re4 {[%clk 0:00:04.5]} 88. Bg3 {[%clk 0:00:02.3]} 88... Ra4 {[%clk 0:00:04.1]}
89. Ke2 {[%clk 0:00:02.2]} 89... f4 {[%clk 0:00:04.2]} 90. Be1 {[%clk
0:00:02.6]} 90... Kf5 {[%clk 0:00:04.1]} 91. Bd2 {[%clk 0:00:03.1]} 91... Ra2
{[%clk 0:00:04.3]} 92. Kd3 {[%clk 0:00:03.2]} 92... f3 {[%clk 0:00:03.5]} 93.
Be3 {[%clk 0:00:03.1]} 93... Ra3+ {[%clk 0:00:03.6]} 94. Kd2 {[%clk 0:00:03.6]}
94... Ra2+ {[%clk 0:00:03.7]} 95. Kd3 {[%clk 0:00:04.2]} 95... Re2 {[%clk
0:00:03]} 96. Rh1 {[%clk 0:00:03.9]} 96... g3 {[%clk 0:00:02.6]} 97. Rh8 {[%clk
0:00:04.1]} 97... Kg4 {[%clk 0:00:02.6]} 98. Rg8+ {[%clk 0:00:02]} 98... Kh3
{[%clk 0:00:03.2]} 99. Rh8+ {[%clk 0:00:01.5]} 99... Kg2 {[%clk 0:00:03.5]} 100.
Rg8 {[%clk 0:00:02]} 100... Ra2 {[%clk 0:00:03.5]} 101. Bf4 {[%clk 0:00:02.1]}
101... Ra3+ {[%clk 0:00:03.9]} 102. Ke4 {[%clk 0:00:02.2]} 102... f2 {[%clk
0:00:04.2]} 103. Bxg3 {[%clk 0:00:01.9]} 103... Rxg3 {[%clk 0:00:03.6]} 0-1

[Event "Early-Titled-Tuesday-Blitz-March-12-2024"]
[Site "Chess.com"]
[Date "2024.03.12"]
[Round "8"]
[White "Boundless_Strike"]
[Black "MidnightFox"]
[Result "1-0"]
[WhiteElo "2610"]
[BlackElo "2504"]
[TimeControl "180+1"]
[EndTime "9:21:40 PDT"]
[Termination "Boundless_Strike won by resignation"]

1. d4 {[%clk 0:02:57]} 1... Nf6 {[%clk 0:02:59]} 2. f3 {[%clk 0:02:56.9]} 2...
c5 {[%clk 0:02:54]} 3. d5 {[%clk 0:02:56.2]} 3... e5 {[%clk 0:02:53.6]} 4. e4
{[%clk 0:02:42.1]} 4... Bd6 {[%clk 0:02:53.3]} 5. c4 {[%clk 0:02:40.8]} 5... Bc7
{[%clk 0:02:53.3]} 6. Nc3 {[%clk 0:02:40.8]} 6... d6 {[%clk 0:02:52.7]} 7. Bd3
{[%clk 0:02:40.2]} 7... Ba5 {[%clk 0:02:52.5]} 8. Ne2 {[%clk 0:02:39.3]} 8...
Nbd7 {[%clk 0:02:50.2]} 9. O-O {[%clk 0:02:38.6]} 9... Nf8 {[%clk 0:02:50.3]}
10. a3 {[%clk 0:01:58.1]} 10... Ng6 {[%clk 0:02:48.5]} 11. b4 {[%clk 0:01:54.9]}
11... cxb4 {[%clk 0:02:47.1]} 12. axb4 {[%clk 0:01:54.9]} 12... Bxb4 {[%clk
0:02:48]} 13. Qa4+ {[%clk 0:01:53]} 13... Bd7 {[%clk 0:02:40.9]} 14. Qxb4 {[%clk
0:01:52]} 1-0

[Event "Early-Titled-Tuesday-Blitz-March-12-2024"]
[Site "Chess.com"]
[Date "2024.03.12"]
[Round "8"]
[White "David_George21"]
[Black "Flaccidmoves"]
[Result "0-1"]
[WhiteElo "2295"]
[BlackElo "2433"]
[TimeControl "180+1"]
[EndTime "9:22:42 PDT"]
[Termination "Flaccidmoves won by resignation"]

1. e4 {[%clk 0:02:59.2]} 1... e6 {[%clk 0:02:59.1]} 2. d4 {[%clk 0:02:57.1]}
2... d5 {[%clk 0:02:59.5]} 3. Nd2 {[%clk 0:02:52.4]} 3... c5 {[%clk 0:02:57.1]}
4. exd5 {[%clk 0:02:49.9]} 4... exd5 {[%clk 0:02:57]} 5. Ngf3 {[%clk 0:02:49.1]}
5... Nf6 {[%clk 0:02:56.7]} 6. Bb5+ {[%clk 0:02:47.3]} 6... Nc6 {[%clk
0:02:53.4]} 7. O-O {[%clk 0:02:46.1]} 7... Be7 {[%clk 0:02:52.1]} 8. dxc5 {[%clk
0:02:45.9]} 8... Bxc5 {[%clk 0:02:52.4]} 9. Re1+ {[%clk 0:02:45.8]} 9... Be6
{[%clk 0:02:52.7]} 10. Ng5 {[%clk 0:02:41.3]} 10... O-O {[%clk 0:02:52.7]} 11.
Nxe6 {[%clk 0:02:41.5]} 11... fxe6 {[%clk 0:02:52.5]} 12. Bxc6 {[%clk
0:02:41.8]} 12... bxc6 {[%clk 0:02:51.9]} 13. Rxe6 {[%clk 0:02:35.1]} 13... Ng4
{[%clk 0:02:35.2]} 14. Qxg4 {[%clk 0:02:18.8]} 14... Rxf2 {[%clk 0:02:34.7]} 15.
Nb3 {[%clk 0:02:18.2]} 15... Rf4+ {[%clk 0:02:32.8]} 16. Nxc5 {[%clk 0:02:16.2]}
16... Rxg4 {[%clk 0:02:32.5]} 17. Be3 {[%clk 0:01:59.3]} 17... d4 {[%clk
0:02:07.4]} 18. Rd1 {[%clk 0:01:58.6]} 18... Qd5 {[%clk 0:01:58.6]} 0-1

[Event "Early-Titled-Tuesday-Blitz-March-12-2024"]
[Site "Chess.com"]
[Date "2024.03.12"]
[Round "8"]
[White "Msb2"]
[Black "Seochesspie"]
[Result "1-0"]
[WhiteElo "3004"]
[BlackElo "2867"]
[TimeControl "180+1"]
[EndTime "9:23:00 PDT"]
[Termination "Msb2 won by resignation"]

1. d4 {[%clk 0:03:00.9]} 1... Nf6 {[%clk 0:02:59.6]} 2. c4 {[%clk 0:03:01.1]}
2... e6 {[%clk 0:03:00.2]} 3. Nc3 {[%clk 0:03:01.7]} 3... Bb4 {[%clk 0:02:59.4]}
4. e3 {[%clk 0:03:02.3]} 4... O-O {[%clk 0:02:59.6]} 5. Bd2 {[%clk 0:03:02.5]}
5... c5 {[%clk 0:02:58.3]} 6. a3 {[%clk 0:03:02.5]} 6... Bxc3 {[%clk 0:02:58.2]}
7. Bxc3 {[%clk 0:03:03.4]} 7... Ne4 {[%clk 0:02:58.5]} 8. Ne2 {[%clk 0:03:04.2]}
8... b6 {[%clk 0:02:53.2]} 9. d5 {[%clk 0:03:04.5]} 9... Bb7 {[%clk 0:02:47.9]}
10. f3 {[%clk 0:02:59.1]} 10... Nxc3 {[%clk 0:02:47.9]} 11. Nxc3 {[%clk
0:03:00]} 11... exd5 {[%clk 0:02:48]} 12. cxd5 {[%clk 0:03:00.9]} 12... d6
{[%clk 0:02:47.9]} 13. e4 {[%clk 0:02:59.7]} 13... Nd7 {[%clk 0:02:45.7]} 14.
Be2 {[%clk 0:02:59.7]} 14... Qh4+ {[%clk 0:02:42.3]} 15. g3 {[%clk 0:02:59.8]}
15... Qh3 {[%clk 0:02:42.5]} 16. Qd2 {[%clk 0:02:47.1]} 16... f5 {[%clk
0:02:38.2]} 17. O-O-O {[%clk 0:02:44.4]} 17... Nf6 {[%clk 0:02:29]} 18. exf5
{[%clk 0:02:26.8]} 18... Qxf5 {[%clk 0:02:28.5]} 19. g4 {[%clk 0:02:27.5]} 19...
Qd7 {[%clk 0:02:28.3]} 20. Bd3 {[%clk 0:02:16]} 20... Rae8 {[%clk 0:01:57.5]}
21. Bb5 {[%clk 0:02:12.4]} 21... Qf7 {[%clk 0:01:56.8]} 22. Bxe8 {[%clk
0:02:12.5]} 22... Rxe8 {[%clk 0:01:57.2]} 23. Rhe1 {[%clk 0:02:09.9]} 23... Rxe1
{[%clk 0:01:56.9]} 24. Qxe1 {[%clk 0:02:10.8]} 24... Kf8 {[%clk 0:01:50.8]} 25.
Qd2 {[%clk 0:02:03.1]} 25... h6 {[%clk 0:01:46.5]} 26. Qf4 {[%clk 0:01:59.3]}
26... Qe7 {[%clk 0:01:42.9]} 27. Ne4 {[%clk 0:01:59.6]} 1-0

[Event "Early-Titled-Tuesday-Blitz-March-12-2024"]
[Site "Chess.com"]
[Date "2024.03.12"]
[Round "8"]
[White "Mikhail_Golubev"]
[Black "Pedrada88"]
[Result "0-1"]
[WhiteElo "2688"]
[BlackElo "2552"]
[TimeControl "180+1"]
[EndTime "9:23:27 PDT"]
[Termination "Pedrada88 won by resignation"]

1. e4 {[%clk 0:03:00.9]} 1... c6 {[%clk 0:02:51.8]} 2. d4 {[%clk 0:02:59.9]}
2... d5 {[%clk 0:02:51.7]} 3. e5 {[%clk 0:03:00.1]} 3... Bf5 {[%clk 0:02:51.9]}
4. h4 {[%clk 0:02:58.2]} 4... h5 {[%clk 0:02:50.8]} 5. c4 {[%clk 0:02:58.3]}
5... e6 {[%clk 0:02:50.9]} 6. Nc3 {[%clk 0:02:58.5]} 6... Bb4 {[%clk 0:02:49.7]}
7. a3 {[%clk 0:02:51.8]} 7... Bxc3+ {[%clk 0:02:49.5]} 8. bxc3 {[%clk
0:02:52.7]} 8... Ne7 {[%clk 0:02:48.9]} 9. Bg5 {[%clk 0:02:48.2]} 9... Qa5
{[%clk 0:02:47]} 10. Qd2 {[%clk 0:02:41.2]} 10... Nd7 {[%clk 0:02:44.2]} 11. Ne2
{[%clk 0:02:38.7]} 11... dxc4 {[%clk 0:02:41.7]} 12. Bxe7 {[%clk 0:02:35]} 12...
Kxe7 {[%clk 0:02:39.7]} 13. Ng3 {[%clk 0:02:35.1]} 13... Nb6 {[%clk 0:02:25.4]}
14. Nxf5+ {[%clk 0:02:29.7]} 14... exf5 {[%clk 0:02:25.6]} 15. Be2 {[%clk
0:02:30.3]} 15... Nd5 {[%clk 0:02:22.3]} 16. Rc1 {[%clk 0:02:30.1]} 16... b5
{[%clk 0:02:16.8]} 17. Rh3 {[%clk 0:02:25.3]} 17... Qxa3 {[%clk 0:02:13.4]} 18.
Bf3 {[%clk 0:02:14.9]} 18... a5 {[%clk 0:02:04]} 19. Rd1 {[%clk 0:02:05.2]}
19... Qxc3 {[%clk 0:01:58.1]} 20. Qxc3 {[%clk 0:02:00.7]} 20... Nxc3 {[%clk
0:01:58.1]} 21. Bxc6 {[%clk 0:02:01.4]} 21... Nxd1 {[%clk 0:01:53.3]} 22. Bxa8
{[%clk 0:02:00.2]} 22... Rxa8 {[%clk 0:01:52.5]} 23. Kxd1 {[%clk 0:01:59.8]}
23... Rd8 {[%clk 0:01:52.3]} 24. Ra3 {[%clk 0:01:50.2]} 24... Rxd4+ {[%clk
0:01:52]} 25. Kc2 {[%clk 0:01:50.9]} 25... a4 {[%clk 0:01:51.7]} 26. Ra1 {[%clk
0:01:51.1]} 26... Rd3 {[%clk 0:01:47.1]} 27. Rb1 {[%clk 0:01:48.2]} 27... Rb3
{[%clk 0:01:47.2]} 28. Rd1 {[%clk 0:01:44.1]} 28... a3 {[%clk 0:01:45.5]} 29. f4
{[%clk 0:01:43.5]} 29... Rg3 {[%clk 0:01:42.3]} 0-1

[Event "Early-Titled-Tuesday-Blitz-March-12-2024"]
[Site "Chess.com"]
[Date "2024.03.12"]
[Round "8"]
[White "margarita_2703"]
[Black "Alenzer"]
[Result "1-0"]
[WhiteElo "2376"]
[BlackElo "2155"]
[TimeControl "180+1"]
[EndTime "9:23:47 PDT"]
[Termination "margarita_2703 won by resignation"]

1. g4 {[%clk 0:03:00.9]} 1... d5 {[%clk 0:02:54.9]} 2. Bg2 {[%clk 0:02:52.1]}
2... e5 {[%clk 0:02:53]} 3. h3 {[%clk 0:02:50.5]} 3... c6 {[%clk 0:02:51.9]} 4.
b3 {[%clk 0:02:47]} 4... Bd6 {[%clk 0:02:52]} 5. Bb2 {[%clk 0:02:46.8]} 5... Ne7
{[%clk 0:02:52.4]} 6. d3 {[%clk 0:02:43.1]} 6... Be6 {[%clk 0:02:51.1]} 7. c4
{[%clk 0:02:41.7]} 7... Nd7 {[%clk 0:02:47]} 8. Nc3 {[%clk 0:02:40.9]} 8... d4
{[%clk 0:02:41.6]} 9. Ne4 {[%clk 0:02:40.3]} 9... Bb4+ {[%clk 0:02:30]} 10. Nd2
{[%clk 0:02:39.7]} 10... O-O {[%clk 0:02:25.6]} 11. Nf3 {[%clk 0:02:35.7]} 11...
f5 {[%clk 0:02:20.3]} 12. gxf5 {[%clk 0:02:35.1]} 12... Nxf5 {[%clk 0:02:18.7]}
13. a3 {[%clk 0:02:36]} 13... Bxd2+ {[%clk 0:02:16.8]} 14. Qxd2 {[%clk
0:02:36.9]} 14... Nh4 {[%clk 0:02:14]} 15. Nxh4 {[%clk 0:02:36.6]} 15... Qxh4
{[%clk 0:02:13.4]} 16. Rf1 {[%clk 0:02:36.3]} 16... Rxf2 {[%clk 0:02:02.6]} 17.
Rxf2 {[%clk 0:02:34.3]} 17... Rf8 {[%clk 0:02:02.6]} 18. e4 {[%clk 0:02:34.4]}
18... Bxh3 {[%clk 0:01:31.1]} 19. Bxh3 {[%clk 0:02:33.3]} 19... Qxh3 {[%clk
0:01:25]} 20. O-O-O {[%clk 0:02:31.8]} 20... Nf6 {[%clk 0:01:22.8]} 21. Rdf1
{[%clk 0:02:30.6]} 21... b5 {[%clk 0:01:14.8]} 22. cxb5 {[%clk 0:02:29.7]} 22...
cxb5 {[%clk 0:01:14.7]} 23. Kb1 {[%clk 0:02:30.2]} 23... Qe6 {[%clk 0:01:13.1]}
24. Ka2 {[%clk 0:02:29.2]} 24... Rc8 {[%clk 0:01:10]} 25. Rc1 {[%clk 0:02:28.5]}
25... Rb8 {[%clk 0:01:09.1]} 26. Rc5 {[%clk 0:02:28.1]} 26... b4 {[%clk
0:01:09.2]} 27. axb4 {[%clk 0:02:27.8]} 27... Qb6 {[%clk 0:01:02.3]} 28. Ba3
{[%clk 0:02:27]} 28... Nd7 {[%clk 0:00:57.8]} 29. Rd5 {[%clk 0:02:23.1]} 29...
Nf6 {[%clk 0:00:57.8]} 30. Rxe5 {[%clk 0:02:17.8]} 1-0

[Event "Early-Titled-Tuesday-Blitz-March-12-2024"]
[Site "Chess.com"]
[Date "2024.03.12"]
[Round "8"]
[White "Al_Shima"]
[Black "HajiyevKanan"]
[Result "1-0"]
[WhiteElo "2451"]
[BlackElo "2563"]
[TimeControl "180+1"]
[EndTime "9:24:03 PDT"]
[Termination "Al_Shima won by resignation"]

1. e4 {[%clk 0:02:58]} 1... c6 {[%clk 0:03:00.1]} 2. Nc3 {[%clk 0:02:57.9]} 2...
d5 {[%clk 0:03:01]} 3. Nf3 {[%clk 0:02:58.2]} 3... a6 {[%clk 0:03:01.8]} 4. d4
{[%clk 0:02:57.7]} 4... Bg4 {[%clk 0:03:01.9]} 5. Be3 {[%clk 0:02:54.3]} 5... e6
{[%clk 0:03:02.1]} 6. h3 {[%clk 0:02:54.3]} 6... Bh5 {[%clk 0:03:02.2]} 7. g4
{[%clk 0:02:52.8]} 7... Bg6 {[%clk 0:03:02.3]} 8. exd5 {[%clk 0:02:53]} 8...
cxd5 {[%clk 0:03:03.1]} 9. Ne5 {[%clk 0:02:53.5]} 9... Nc6 {[%clk 0:03:03.9]}
10. Nxg6 {[%clk 0:02:53.5]} 10... hxg6 {[%clk 0:03:04.8]} 11. Bg2 {[%clk
0:02:49.7]} 11... Nf6 {[%clk 0:03:04.8]} 12. a3 {[%clk 0:02:44.3]} 12... Bd6
{[%clk 0:03:05.1]} 13. Qd3 {[%clk 0:02:44.4]} 13... Qc7 {[%clk 0:03:05.2]} 14.
O-O-O {[%clk 0:02:42.7]} 14... b5 {[%clk 0:03:01.4]} 15. Rhe1 {[%clk 0:02:37]}
15... b4 {[%clk 0:02:54.7]} 16. axb4 {[%clk 0:02:31.3]} 16... Nxb4 {[%clk
0:02:53.9]} 17. Qe2 {[%clk 0:02:30.2]} 17... Qa5 {[%clk 0:02:51.9]} 18. g5
{[%clk 0:02:14.9]} 18... Nd7 {[%clk 0:02:41.7]} 19. Kd2 {[%clk 0:01:55.2]} 19...
Nb6 {[%clk 0:02:36.8]} 20. Ra1 {[%clk 0:01:22.4]} 20... Nc4+ {[%clk 0:02:34.5]}
21. Qxc4 {[%clk 0:01:20.9]} 21... Qxa1 {[%clk 0:02:24]} 22. Rxa1 {[%clk
0:01:19.7]} 22... dxc4 {[%clk 0:02:23.9]} 23. Bxa8 {[%clk 0:01:20.2]} 23... Rxh3
{[%clk 0:02:23.4]} 24. Ne4 {[%clk 0:01:17.9]} 24... Be7 {[%clk 0:02:20]} 25. c3
{[%clk 0:01:15.7]} 25... Nd3 {[%clk 0:02:19.6]} 26. Bc6+ {[%clk 0:01:07.8]}
26... Kd8 {[%clk 0:02:16]} 27. Rxa6 {[%clk 0:01:08.1]} 27... Nxb2 {[%clk
0:02:11.2]} 28. Bf4 {[%clk 0:01:00.6]} 1-0